fUST/lending_fUST_20250701
["ID","MTS","AMOUNT","RATE_DAILY","PERIOD"]
[368780506,1751363456114,-598.6,0.00019725,2]
[368780507,1751363456124,-935.82,0.00019725,2]
[368780508,1751363456133,-460.0,0.00019725,2]
[368780509,1751363456143,-486.81,0.00019725,2]
[368780510,1751363456153,-460.0,0.00019725,2]
[368780511,1751363456163,-1539.79,0.00019725,2]
[368780512,1751363456172,-2209.86,0.00019725,2]
[368780513,1751363456183,-460.0,0.00019725,2]
[368780514,1751363456192,-1177.83,0.00019725,2]
[368780515,1751363456202,-151.0,0.00019726,2]
[368780516,1751363456212,-514.45,0.00019727,2]
[368780517,1751363456222,-232.06166779,0.00019727,2]
[368780518,1751363456232,-460.0,0.00019727,2]
[368780519,1751363456241,-460.0,0.00019729,2]
[368780520,1751363456251,-460.0,0.00019729,2]
[368780521,1751363456260,-249.0,0.00019751,2]
[368780522,1751363456270,-424.404565,0.00019751,2]
[368780523,1751363456281,-1431.181619,0.00019798,2]
[368780524,1751363456290,-168.0,0.00019823,2]
[368780525,1751363456300,-555.83,0.00019827,2]
[368780526,1751363456310,-608.33617136,0.00019866,2]
[368780527,1751363456320,-363.726,0.000199,2]
[368780528,1751363456330,-1323.74,0.000199,2]
[368780529,1751363456340,-460.0,0.000199,2]
[368780530,1751363456350,-460.0,0.00019901,2]
[368780531,1751363456359,-1590.5,0.00019901,2]
[368780532,1751363456369,-460.0,0.00019901,2]
[368780533,1751363456378,-1192.21,0.00019901,2]
[368780534,1751363456388,-460.0,0.00019901,2]
[368780535,1751363456398,-268.96,0.00019901,2]
[368780536,1751363456408,-460.0,0.00019901,2]
[368780537,1751363456418,-460.0,0.00019901,2]
[368780538,1751363456428,-460.0,0.00019901,2]
[368780539,1751363456437,-1552.26,0.00019901,2]
[368780540,1751363456448,-460.0,0.00019901,2]
[368780541,1751363456458,-460.0,0.00019901,2]
[368780542,1751363456467,-460.0,0.00019901,2]
[368780543,1751363456477,-1767.48,0.00019901,2]
[368780544,1751363456487,-460.0,0.00019901,2]
[368780545,1751363456497,-1866.06,0.00019901,2]
[368780546,1751363456508,-460.0,0.00019901,2]
[368780547,1751363456519,-460.0,0.00019901,2]
[368780548,1751363456529,-460.0,0.00019901,2]
[368780549,1751363456539,-1119.17,0.00019901,2]
[368780550,1751363456549,-585.13,0.00019901,2]
[368780551,1751363456559,-460.0,0.00019901,2]
[368780552,1751363456569,-151.0,0.00019901,2]
[368780553,1751363456579,-460.0,0.00019901,2]
[368780554,1751363456589,-460.0,0.00019901,2]
[368780555,1751363456600,-582.95,0.00019901,2]
[368780556,1751363456610,-460.0,0.00019901,2]
[368780557,1751363456620,-460.0,0.00019901,2]
[368780558,1751363456629,-460.0,0.00019901,2]
[368780559,1751363456639,-460.0,0.00019901,2]
[368780560,1751363456649,-460.0,0.00019902,2]
[368780561,1751363456659,-460.0,0.00019902,2]
[368780562,1751363456669,-418.49801582,0.00019902,2]
[368780563,1751363456679,-460.0,0.00019902,2]
[368780564,1751363456688,-2546.94,0.00019902,2]
[368780565,1751363456698,-460.0,0.00019902,2]
[368780566,1751363456707,-727.96,0.00019902,2]
[368780567,1751363456717,-1000.0,0.00019921,2]
[368780568,1751363456727,-1000.0,0.00019921,2]
[368780569,1751363456736,-1000.0,0.00019921,2]
[368780570,1751363456746,-1000.0,0.00019921,2]
[368780571,1751363456755,-1000.0,0.00019921,2]
[368780572,1751363456765,-604.50948688,0.00019921,2]
[368780573,1751363456774,-1000.0,0.00019921,2]
[368780574,1751363456784,-1000.0,0.00019921,2]
[368780575,1751363456794,-971.9089426,0.00019921,2]
[368780576,1751363456805,-1000.0,0.00019921,2]
[368780577,1751363456814,-1000.0,0.00019921,2]
[368780578,1751363456824,-151.0,0.00019921,2]
[368780579,1751363456834,-151.0,0.00019921,2]
[368780580,1751363456843,-294.179352,0.00019921,2]
[368780581,1751363456853,-1003.0446686,0.00019983,2]
[368780582,1751363456863,-191.957885,0.00019983,2]
[368780583,1751363456873,-191.957885,0.00019983,2]
[368780584,1751363456883,-460.0,0.00019992,2]
[368780585,1751363456892,-460.0,0.00019992,2]
[368780586,1751363456902,-460.0,0.00019992,2]
[368780587,1751363456915,-460.0,0.00019992,2]
[368780588,1751363456926,-460.0,0.00019992,2]
[368780589,1751363456936,-460.0,0.00019992,2]
[368780590,1751363456945,-460.0,0.00019992,2]
[368780591,1751363456956,-460.0,0.00019992,2]
[368780592,1751363456966,-460.0,0.00019992,2]
[368780593,1751363456976,-460.0,0.00019992,2]
[368780594,1751363456986,-460.0,0.00019992,2]
[368780595,1751363456996,-151.0,0.00019992,2]
[368780596,1751363457006,-460.0,0.00019992,2]
[368780597,1751363457016,-151.0,0.00019993,2]
[368780598,1751363457027,-2968.01,0.00019993,2]
[368780599,1751363457037,-151.0,0.00019993,2]
[368780600,1751363457047,-222.989582,0.00019993,2]
[368780601,1751363457059,-151.0,0.00019993,2]
[368780602,1751363457069,-222.989582,0.00019993,2]
[368780603,1751363457078,-842.61,0.00019993,2]
[368780604,1751363457161,-151.0,0.00019993,2]
[368780605,1751363457171,-151.0,0.00019999,2]
[368780606,1751363457181,-183.580611,0.00019999,2]
[368780607,1751363457191,-154.14207756,0.00019999,2]
[368780608,1751363457300,-29.43853344,0.00019999,2]
[368780609,1751363457311,-151.0,0.00019999,2]
[368780610,1751363457321,-151.0,0.00019999,2]
[368780611,1751363457331,-66.60296762,0.00019999,2]
[368780612,1751363457380,5000.0,0.0001833,6]
[368780613,1751363457706,-40.64593622,0.00017709,2]
[368780614,1751363458008,-419.35406378,0.00017709,2]
[368780615,1751363458018,-301.42,0.00017709,2]
[368780616,1751363458028,-460.0,0.00017709,2]
[368780617,1751363458037,-460.0,0.00017709,2]
[368780618,1751363458048,-460.0,0.0001771,2]
[368780619,1751363458058,-460.0,0.00017807,2]
[368780620,1751363458067,-460.0,0.00017984,2]
[368780621,1751363458076,-460.0,0.00018081,2]
[368780622,1751363458086,-212.85,0.00018531,2]
[368780623,1751363458096,-460.0,0.0001917,2]
[368780624,1751363458106,-460.0,0.00019444,2]
[368780625,1751363458116,-787.84451538,0.00019999,2]
[368780626,1751363458129,-854.447483,0.00019999,2]
[368780627,1751363458139,-598.6,0.00019999,2]
[368780628,1751363458148,-935.82,0.00019999,2]
[368780629,1751363458158,-460.0,0.00019999,2]
[368780630,1751363458167,-460.0,0.00019999,2]
[368780631,1751363458176,-1539.79,0.00019999,2]
[368780632,1751363458185,-2209.86,0.00019999,2]
[368780633,1751363458195,-460.0,0.00019999,2]
[368780634,1751363458204,-1177.83,0.00019999,2]
[368780635,1751363458214,-11199.80403469,0.0002,2]
[368780636,1751363458223,-13646.57363882,0.0002,2]
[368780637,1751363458233,-1187.63158602,0.0002,2]
[368780638,1751363458244,-361.64427373,0.0002,2]
[368780639,1751363458253,-40000.0,0.0002,2]
[368780640,1751363458263,-2875.54065777,0.0002,2]
[368780641,1751363458274,-252.11453212,0.0002,30]
[368780642,1751363458283,-549.31594541,0.0002,2]
[368780643,1751363458294,-40929.84782435,0.0002,2]
[368780644,1751363458307,-151.0,0.0002,2]
[368780645,1751363458317,-250.170853,0.0002,2]
[368780646,1751363458329,-276.73682909,0.0002,2]
[368780647,1751363458343,-151.0,0.0002,2]
[368780648,1751363458422,-151.0,0.0002,2]
[368780649,1751363458433,-183.717312,0.0002,2]
[368780650,1751363458442,-179.568624,0.0002,2]
[368780651,1751363458452,-151.0,0.0002,2]
[368780652,1751363458461,-151.0,0.0002,2]
[368780653,1751363458471,-151.0,0.0002,2]
[368780654,1751363458481,-151.0,0.0002,2]
[368780655,1751363458490,-252.689177,0.0002,2]
[368780656,1751363458499,-252.689177,0.0002,2]
[368780657,1751363458508,-252.689177,0.0002,2]
[368780658,1751363458517,-252.689177,0.0002,2]
[368780659,1751363458527,-187.046195,0.0002,2]
[368780660,1751363458537,-183.580611,0.0002,2]
[368780661,1751363458547,-183.580611,0.0002,2]
[368780662,1751363458557,-151.0,0.0002,2]
[368780663,1751363458569,-151.0,0.0002,2]
[368780664,1751363458580,-854.447483,0.0002,2]
[368780665,1751363458590,-854.447483,0.0002,2]
[368780666,1751363458600,-151.0,0.0002,2]
[368780667,1751363458609,-151.0,0.0002,2]
[368780668,1751363458619,-1000.0,0.0002,20]
[368780669,1751363458628,-222.989582,0.0002,2]
[368780670,1751363458638,-151.0,0.0002,2]
[368780671,1751363458647,-222.989582,0.0002,2]
[368780672,1751363458657,-191.957885,0.0002,2]
[368780673,1751363458667,-191.957885,0.0002,2]
[368780674,1751363458676,-151.0,0.0002,2]
[368780675,1751363458686,-151.0,0.0002,2]
[368780676,1751363458695,-151.0,0.0002,2]
[368780677,1751363458704,-151.0,0.0002,2]
[368780678,1751363458713,-151.0,0.0002,2]
[368780679,1751363458723,-2657.53402941,0.0002,4]
[368780680,1751363458732,-151.0,0.00020001,2]
[368780681,1751363458742,-151.0,0.00020001,2]
[368780682,1751363458751,-514.45,0.00020001,2]
[368780683,1751363458760,-460.0,0.00020001,2]
[368780684,1751363458770,-460.0,0.00020003,2]
[368780685,1751363458779,-460.0,0.00020003,2]
[368780686,1751363458790,-391.0,0.00020004,2]
[368780687,1751363458803,-151.0,0.00020014,2]
[368780688,1751363458822,-151.0,0.00020103,2]
[368780689,1751363458831,-608.33617136,0.00020107,2]
[368780690,1751363458841,-5000.0,0.00020134,2]
[368780691,1751363458850,-1323.74,0.00020174,2]
[368780692,1751363458860,-460.0,0.00020174,2]
[368780693,1751363458869,-1590.5,0.00020175,2]
[368780694,1751363458878,-460.0,0.00020175,2]
[368780695,1751363458888,-1192.21,0.00020175,2]
[368780696,1751363458897,-460.0,0.00020175,2]
[368780697,1751363458908,-460.0,0.00020175,2]
[368780698,1751363458919,-460.0,0.00020175,2]
[368780699,1751363458929,-280.77,0.00020175,2]
[368780700,1751363458939,-1552.26,0.00020175,2]
[368780701,1751363458948,-460.0,0.00020175,2]
[368780702,1751363458958,-460.0,0.00020175,2]
[368780703,1751363458968,-460.0,0.00020175,2]
[368780704,1751363458978,-1767.48,0.00020175,2]
[368780705,1751363458988,-460.0,0.00020175,2]
[368780706,1751363458999,-1866.06,0.00020175,2]
[368780707,1751363459009,-460.0,0.00020175,2]
[368780708,1751363459018,-460.0,0.00020175,2]
[368780709,1751363459027,-460.0,0.00020175,2]
[368780710,1751363459037,-1119.17,0.00020175,2]
[368780711,1751363459046,-585.13,0.00020175,2]
[368780712,1751363459056,-460.0,0.00020175,2]
[368780713,1751363459067,-460.0,0.00020175,2]
[368780714,1751363459078,-460.0,0.00020175,2]
[368780715,1751363459087,-582.95,0.00020175,2]
[368780716,1751363459097,-436.88,0.00020175,2]
[368780717,1751363459106,-260.07143596,0.00020175,2]
[368780718,1751363459116,-460.0,0.00020175,2]
[368780719,1751363459126,-460.0,0.00020175,2]
[368780720,1751363459136,-460.0,0.00020176,2]
[368780721,1751363459145,-460.0,0.00020176,2]
[368780722,1751363459155,-460.0,0.00020176,2]
[368780723,1751363459164,-2546.94,0.00020176,2]
[368780724,1751363459173,-460.0,0.00020176,2]
[368780725,1751363459182,-727.96,0.00020176,2]
[368780726,1751363459191,-614.837219,0.00020187,2]
[368780727,1751363459201,-1228.0,0.00020223,2]
[368780728,1751363459210,-460.0,0.00020266,2]
[368780729,1751363459220,-460.0,0.00020266,2]
[368780730,1751363459230,-460.0,0.00020266,2]
[368780731,1751363459242,-460.0,0.00020266,2]
[368780732,1751363459253,-460.0,0.00020266,2]
[368780733,1751363459263,-460.0,0.00020266,2]
[368780734,1751363459273,-460.0,0.00020266,2]
[368780735,1751363459283,-460.0,0.00020266,2]
[368780736,1751363459294,-460.0,0.00020266,2]
[368780737,1751363459303,-460.0,0.00020266,2]
[368780738,1751363459313,-460.0,0.00020266,2]
[368780739,1751363459323,-460.0,0.00020266,2]
[368780740,1751363459332,-2968.01,0.00020267,2]
[368780741,1751363459342,-842.61,0.00020267,2]
[368780742,1751363459351,-598.6,0.00020273,2]
[368780743,1751363459361,-935.82,0.00020273,2]
[368780744,1751363459370,-460.0,0.00020273,2]
[368780745,1751363459380,-460.0,0.00020273,2]
[368780746,1751363459389,-1539.79,0.00020273,2]
[368780747,1751363459399,-2209.86,0.00020273,2]
[368780748,1751363459408,-460.0,0.00020273,2]
[368780749,1751363459418,-151.0,0.00020273,2]
[368780750,1751363459429,-1177.83,0.00020273,2]
[368780751,1751363459440,-514.45,0.00020275,2]
[368780752,1751363459449,-460.0,0.00020275,2]
[368780753,1751363459460,-354.61881216,0.00020277,2]
[368780754,1751363459469,-188.01443196,0.00020342,5]
[368780755,1751363459478,-608.33617136,0.00020348,3]
[368780756,1751363459487,-1284.04,0.000204,2]
[368780757,1751363459497,-1323.74,0.00020448,2]
[368780758,1751363459506,-460.0,0.00020448,2]
[368780759,1751363459515,-1590.5,0.00020449,2]
[368780760,1751363459524,-460.0,0.00020449,2]
[368780761,1751363459534,-1192.21,0.00020449,2]
[368780762,1751363459544,-460.0,0.00020449,2]
[368780763,1751363459553,-460.0,0.00020449,2]
[368780764,1751363459562,-460.0,0.00020449,2]
[368780765,1751363459571,-1552.26,0.00020449,2]
[368780766,1751363459581,-460.0,0.00020449,2]
[368780767,1751363459590,-460.0,0.00020449,2]
[368780768,1751363459599,-460.0,0.00020449,2]
[368780769,1751363459609,-1767.48,0.00020449,2]
[368780770,1751363459618,-460.0,0.00020449,2]
[368780771,1751363459696,-1866.06,0.00020449,2]
[368780772,1751363459706,-460.0,0.00020449,2]
[368780773,1751363459716,-460.0,0.00020449,2]
[368780774,1751363459726,-460.0,0.00020449,2]
[368780775,1751363459736,-1119.17,0.00020449,2]
[368780776,1751363459745,-585.13,0.00020449,2]
[368780777,1751363459755,-460.0,0.00020449,2]
[368780778,1751363459765,-460.0,0.00020449,2]
[368780779,1751363459775,-460.0,0.00020449,2]
[368780780,1751363459784,-582.95,0.00020449,2]
[368780781,1751363459794,-460.0,0.00020449,2]
[368780782,1751363459805,-460.0,0.00020449,2]
[368780783,1751363459815,-201.376776,0.0002045,2]
[368780784,1751363459824,-151.0,0.0002045,2]
[368780785,1751363459833,-460.0,0.0002045,2]
[368780786,1751363459843,-222.989582,0.0002045,2]
[368780787,1751363459852,-151.0,0.0002045,2]
[368780788,1751363459861,-222.989589,0.0002045,2]
[368780789,1751363459871,-191.957885,0.0002045,2]
[368780790,1751363459880,-191.957885,0.0002045,2]
[368780791,1751363459891,-151.0,0.0002045,2]
[368780792,1751363459901,-460.0,0.0002045,2]
[368780793,1751363459912,-460.0,0.0002045,2]
[368780794,1751363459922,-2546.94,0.0002045,2]
[368780795,1751363459933,-460.0,0.0002045,2]
[368780796,1751363459943,-727.96,0.0002045,2]
[368780797,1751363459953,-610.22016191,0.00020468,2]
[368780798,1751363459963,-688.85272705,0.00020468,2]
[368780799,1751363459972,-381.12367281,0.00020468,2]
[368780800,1751363459982,-1500.0,0.00020468,2]
[368780801,1751363459991,-1500.0,0.00020468,2]
[368780802,1751363460001,-1500.0,0.00020468,2]
[368780803,1751363460012,-1003.63925753,0.00020468,2]
[368780804,1751363460022,-1500.0,0.00020468,2]
[368780805,1751363460032,-1500.0,0.00020468,2]
[368780806,1751363460042,-183.580611,0.00020531,2]
[368780807,1751363460052,-183.580611,0.00020531,2]
[368780808,1751363460062,-151.0,0.00020531,2]
[368780809,1751363460072,-151.0,0.00020531,2]
[368780810,1751363460082,-854.447483,0.00020531,2]
[368780811,1751363460092,-854.447483,0.00020531,2]
[368780812,1751363460102,-460.0,0.0002054,2]
[368780813,1751363460112,-460.0,0.0002054,2]
[368780814,1751363460121,-460.0,0.0002054,2]
[368780815,1751363460131,-427.42,0.0002054,2]
[368780816,1751363460140,-460.0,0.0002054,2]
[368780817,1751363460150,-460.0,0.0002054,2]
[368780818,1751363460161,-460.0,0.0002054,2]
[368780819,1751363460170,-346.18511559,0.0002054,2]
[368780820,1751363460179,-460.0,0.0002054,2]
[368780821,1751363460190,-460.0,0.0002054,2]
[368780822,1751363460200,-460.0,0.0002054,2]
[368780823,1751363460210,-151.0,0.0002054,2]
[368780824,1751363460220,-151.0,0.0002054,2]
[368780825,1751363460229,-460.0,0.0002054,2]
[368780826,1751363460239,-2968.01,0.00020541,2]
[368780827,1751363460248,-842.61,0.00020541,2]
[368780828,1751363460258,-151.0,0.00020541,2]
[368780829,1751363460267,-598.6,0.00020547,2]
[368780830,1751363460278,-935.82,0.00020547,2]
[368780831,1751363460287,-460.0,0.00020547,2]
[368780832,1751363460297,-460.0,0.00020547,2]
[368780833,1751363460307,-1539.79,0.00020547,2]
[368780834,1751363460316,-2209.86,0.00020547,2]
[368780835,1751363460325,-460.0,0.00020547,2]
[368780836,1751363460334,-1177.83,0.00020547,2]
[368780837,1751363460343,-245.0,0.00020548,2]
[368780838,1751363460353,-151.0,0.00020548,2]
[368780839,1751363460362,-151.0,0.00020548,2]
[368780840,1751363460371,-252.689177,0.00020548,2]
[368780841,1751363460381,-252.689177,0.00020548,2]
[368780842,1751363460390,-151.0,0.00020549,2]
[368780843,1751363460400,-514.45,0.00020549,2]
[368780844,1751363460411,-320.11091717,0.00020549,2]
[368780845,1751363460420,-608.33617136,0.0002059,3]
[368780846,1751363460431,-1856.58,0.000206,2]
[368780847,1751363460441,-151.0,0.000206,2]
[368780848,1751363460451,-151.0,0.00020617,2]
[368780849,1751363460462,-5000.0,0.00020682,2]
[368780850,1751363460471,-1323.74,0.00020722,2]
[368780851,1751363460482,-179.86262594,0.00020722,2]
[368780852,1751363460492,-1590.5,0.00020723,2]
[368780853,1751363460502,-460.0,0.00020723,2]
[368780854,1751363460512,-1192.21,0.00020723,2]
[368780855,1751363460521,-460.1,0.00020723,2]
[368780856,1751363460531,-361.63,0.00020723,2]
[368780857,1751363460540,-489.47,0.00020723,2]
[368780858,1751363460550,-1552.26,0.00020723,2]
[368780859,1751363460559,-460.0,0.00020723,2]
[368780860,1751363460569,-305.95890458,0.00020723,2]
[368780861,1751363460578,-460.0,0.00020723,2]
[368780862,1751363460588,-1767.48,0.00020723,2]
[368780863,1751363460597,-186.93,0.00020723,2]
[368780864,1751363460607,-1866.06,0.00020723,2]
[368780865,1751363460616,-460.0,0.00020723,2]
[368780866,1751363460625,-460.0,0.00020723,2]
[368780867,1751363460635,-199.67,0.00020723,2]
[368780868,1751363460644,-1119.17,0.00020723,2]
[368780869,1751363460654,-585.13,0.00020723,2]
[368780870,1751363460664,-460.0,0.00020723,2]
[368780871,1751363460673,-460.0,0.00020723,2]
[368780872,1751363460683,-460.0,0.00020723,2]
[368780873,1751363460692,-582.95,0.00020723,2]
[368780874,1751363460702,-460.0,0.00020723,2]
[368780875,1751363460711,-460.0,0.00020723,2]
[368780876,1751363460721,-460.0,0.00020724,2]
[368780877,1751363460730,-460.0,0.00020724,2]
[368780878,1751363460740,-460.0,0.00020724,2]
[368780879,1751363460750,-2546.94,0.00020724,2]
[368780880,1751363460759,-460.0,0.00020724,2]
[368780881,1751363460769,-727.96,0.00020724,2]
[368780882,1751363460781,-460.0,0.00020814,2]
[368780883,1751363460791,-460.0,0.00020814,2]
[368780884,1751363460864,-507.07,0.00020814,2]
[368780885,1751363460875,-460.0,0.00020814,2]
[368780886,1751363460885,-460.0,0.00020814,2]
[368780887,1751363460894,-574.56,0.00020814,2]
[368780888,1751363460904,-303.46788031,0.00020814,2]
[368780889,1751363460914,-460.0,0.00020814,2]
[368780890,1751363460927,-460.0,0.00020814,2]
[368780891,1751363460937,-2968.01,0.00020815,2]
[368780892,1751363460946,-842.61,0.00020815,2]
[368780893,1751363460957,-598.6,0.00020821,2]
[368780894,1751363460966,-935.82,0.00020821,2]
[368780895,1751363460975,-460.0,0.00020821,2]
[368780896,1751363460984,-460.0,0.00020821,2]
[368780897,1751363460996,-1539.79,0.00020821,2]
[368780898,1751363461007,-2209.86,0.00020821,2]
[368780899,1751363461016,-460.0,0.00020821,2]
[368780900,1751363461025,-1177.83,0.00020821,2]
[368780901,1751363461035,-514.45,0.00020823,2]
[368780902,1751363461045,-608.33617136,0.00020831,4]
[368780903,1751363461054,-150.0,0.00020843,2]
[368780904,1751363461063,-215.0738,0.00020955,2]
[368780905,1751363461073,-966.0,0.00020985,2]
[368780906,1751363461083,-646.0,0.00020985,2]
[368780907,1751363461093,-2151.0,0.00020985,2]
[368780908,1751363461102,-1323.74,0.00020996,2]
[368780909,1751363461112,-1590.5,0.00020997,2]
[368780910,1751363461121,-460.0,0.00020997,2]
[368780911,1751363461131,-1192.21,0.00020997,2]
[368780912,1751363461141,-1552.26,0.00020997,2]
[368780913,1751363461151,-471.79946849,0.00020997,2]
[368780914,1751363461160,-460.0,0.00020997,2]
[368780915,1751363461169,-1767.48,0.00020997,2]
[368780916,1751363461179,-1866.06,0.00020997,2]
[368780917,1751363461188,-460.0,0.00020997,2]
[368780918,1751363461198,-460.0,0.00020997,2]
[368780919,1751363461208,-1119.17,0.00020997,2]
[368780920,1751363461217,-585.13,0.00020997,2]
[368780921,1751363461226,-155.67,0.00020997,2]
[368780922,1751363461236,-460.0,0.00020997,2]
[368780923,1751363461246,-602.32672243,0.00020997,2]
[368780924,1751363461256,-582.95,0.00020997,2]
[368780925,1751363461266,-460.0,0.00020997,2]
[368780926,1751363461275,-460.0,0.00020997,2]
[368780927,1751363461286,-460.0,0.00020998,2]
[368780928,1751363461296,-596.54,0.00020998,2]
[368780929,1751363461307,-460.0,0.00020998,2]
[368780930,1751363461317,-2546.94,0.00020998,2]
[368780931,1751363461327,-460.0,0.00020998,2]
[368780932,1751363461336,-727.96,0.00020998,2]
[368780933,1751363461347,-21833.27581552,0.00021,2]
[368780934,1751363461356,-183.580611,0.00021,2]
[368780935,1751363461366,-183.58061,0.00021,2]
[368780936,1751363461376,-151.0,0.00021,2]
[368780937,1751363461386,-151.0,0.00021,2]
[368780938,1751363461395,-854.447483,0.00021,2]
[368780939,1751363461406,-854.447481,0.00021,2]
[368780940,1751363461415,-1000.0,0.00021,21]
[368780941,1751363461426,-191.957885,0.00021,2]
[368780942,1751363461436,-191.957889,0.00021,2]
[368780943,1751363461445,-885.85563688,0.00021016,2]
[368780944,1751363461456,-2000.0,0.00021016,2]
[368780945,1751363461466,-679.68119147,0.00021016,2]
[368780946,1751363461476,-2000.0,0.00021016,2]
[368780947,1751363461486,-472.29396385,0.00021016,2]
[368780948,1751363461496,-608.33617136,0.00021072,4]
[368780949,1751363461506,-460.0,0.00021088,2]
[368780950,1751363461517,-460.0,0.00021088,2]
[368780951,1751363461526,-460.0,0.00021088,2]
[368780952,1751363461535,-460.0,0.00021088,2]
[368780953,1751363461545,-460.0,0.00021088,2]
[368780954,1751363461554,-460.0,0.00021088,2]
[368780955,1751363461564,-2968.01,0.00021089,2]
[368780956,1751363461574,-842.61,0.00021089,2]
[368780957,1751363461583,-587.0,0.00021093,2]
[368780958,1751363461594,-151.0,0.00021095,2]
[368780959,1751363461604,-151.0,0.00021095,2]
[368780960,1751363461613,-252.689177,0.00021095,2]
[368780961,1751363461623,-252.689179,0.00021095,2]
[368780962,1751363461632,-598.6,0.00021095,2]
[368780963,1751363461642,-935.82,0.00021095,2]
[368780964,1751363461652,-460.0,0.00021095,2]
[368780965,1751363461662,-460.0,0.00021095,2]
[368780966,1751363461672,-1539.79,0.00021095,2]
[368780967,1751363461682,-2209.86,0.00021095,2]
[368780968,1751363461692,-460.0,0.00021095,2]
[368780969,1751363461701,-1177.83,0.00021095,2]
[368780970,1751363461711,-227.895913,0.00021096,2]
[368780971,1751363461721,-151.0,0.00021096,2]
[368780972,1751363461730,-151.0,0.00021096,2]
[368780973,1751363461740,-514.45,0.00021097,2]
[368780974,1751363461750,-161.028501,0.00021101,3]
[368780975,1751363461760,-168.0,0.00021185,2]
[368780976,1751363461769,-1323.74,0.0002127,2]
[368780977,1751363461779,-1590.5,0.00021271,2]
[368780978,1751363461789,-460.0,0.00021271,2]
[368780980,1751363461799,-1192.21,0.00021271,2]
[368780981,1751363461809,-1552.26,0.00021271,2]
[368780982,1751363461819,-460.0,0.00021271,2]
[368780983,1751363461829,-1767.48,0.00021271,2]
[368780984,1751363461839,-1866.06,0.00021271,2]
[368780985,1751363461850,-460.0,0.00021271,2]
[368780986,1751363461860,-460.0,0.00021271,2]
[368780987,1751363461869,-1119.17,0.00021271,2]
[368780988,1751363461936,-585.13,0.00021271,2]
[368780989,1751363461949,-346.35,0.00021271,2]
[368780990,1751363461959,-582.95,0.00021271,2]
[368780991,1751363461969,-460.0,0.00021271,2]
[368780992,1751363461979,-460.0,0.00021271,2]
[368780993,1751363461989,-460.0,0.00021272,2]
[368780994,1751363462010,-460.0,0.00021272,2]
[368780995,1751363462022,-2546.94,0.00021272,2]
[368780996,1751363462032,-460.0,0.00021272,2]
[368780997,1751363462043,-727.96,0.00021272,2]
[368780998,1751363462054,-500.0,0.000213,7]
[368780999,1751363462065,-500.0,0.000213,7]
[368781000,1751363462075,-500.0,0.000213,7]
[368781001,1751363462085,-500.0,0.000213,7]
[368781002,1751363462095,-500.0,0.000213,7]
[368781003,1751363462106,-500.0,0.000213,7]
[368781004,1751363462116,-500.0,0.000213,7]
[368781005,1751363462126,-500.0,0.000213,7]
[368781006,1751363462136,-500.0,0.000213,7]